bitfinex/quotes_SOLUSD_20251224
["timestamp","ask_amount","ask_price","bid_price","bid_amount"]
[1766598968921,12.42392862,122.41,122.36,17.7592596]
[1766598969122,8.17060217,122.39,122.36,0.7]
[1766598969342,0.67,122.38,122.36,3.5392596]
[1766598969658,8.84060217,122.39,122.36,3.5392596]
[1766598969820,8.84060217,122.39,122.35,23.09323748]
[1766598969821,8.17060217,122.39,122.35,14.92000001]
[1766598970020,0.67,122.38,122.35,1e-08]
[1766598972044,0.67,122.37,122.35,1e-08]
[1766598973656,8.17245532,122.37,122.35,1e-08]
[1766598973848,0.67,122.36,122.35,1e-08]
[1766598975755,8.17260542,122.36,122.35,1e-08]
[1766598977044,31.44104107,122.37,122.35,1e-08]
[1766598977346,0.67,122.36,122.35,1e-08]
[1766598978650,0.67,122.35,122.31,0.1]
[1766598978848,0.67,122.35,122.31,1e-08]
[1766598978849,0.67,122.33,122.31,1e-08]
[1766598979229,8.84527795,122.32,122.31,1e-08]
[1766598983155,0.67,122.32,122.31,1e-08]
[1766598983350,0.67,122.32,122.31,2.83925961]
[1766598983668,0.67,122.32,122.31,1e-08]
[1766598984159,8.17527795,122.32,122.31,1e-08]
[1766598985234,28.60985908,122.34,122.31,1e-08]
[1766598985435,0.67,122.33,122.31,2.83925961]
[1766598986445,0.67,122.33,122.31,1e-08]
[1766598987350,8.84527795,122.32,122.31,1e-08]
[1766598987535,8.17527795,122.32,122.31,1e-08]
[1766598988656,8.84527795,122.32,122.31,1e-08]
[1766598992242,8.17527795,122.32,122.31,1e-08]
[1766598993965,8.84527795,122.32,122.31,1e-08]
[1766598994667,8.17527795,122.32,122.31,1e-08]
[1766598995474,8.17515318,122.33,122.31,1e-08]
[1766598995655,8.84429173,122.34,122.31,3.53925961]
[1766598995977,0.67,122.34,122.31,3.53925961]
[1766598997056,8.84405791,122.34,122.31,3.53925961]
[1766598997365,8.84405791,122.34,122.32,2.8392596]
[1766598997566,8.84405791,122.34,122.31,3.53925961]
[1766598997951,0.67,122.33,122.31,1e-08]
[1766598998667,8.84462536,122.33,122.31,1e-08]
[1766598998967,0.67,122.33,122.31,2.83925961]
[1766599000765,8.84463933,122.33,122.31,2.83925961]
[1766599000945,8.84463933,122.33,122.31,1e-08]
[1766599001145,8.84463933,122.33,122.31,2.83925961]
[1766599001371,8.17463933,122.33,122.31,1e-08]
[1766599001578,0.67,122.32,122.31,1e-08]
[1766599002675,8.84527795,122.32,122.31,1e-08]
[1766599002869,8.17527795,122.32,122.31,1e-08]
[1766599003579,8.86527795,122.32,122.31,1e-08]
[1766599004773,8.17527795,122.32,122.31,1e-08]
[1766599017481,8.86527795,122.32,122.31,1e-08]
[1766599017791,8.17527795,122.32,122.31,1e-08]
[1766599018085,8.86527795,122.32,122.31,1e-08]
[1766599018266,8.17527795,122.32,122.31,1e-08]
[1766599018987,8.86527795,122.32,122.31,1e-08]
[1766599023193,8.17527795,122.32,122.31,1e-08]
[1766599023397,30.43195167,122.32,122.28,0.1]
[1766599023572,14.94,122.31,122.28,0.1]
[1766599023774,0.69,122.27,122.26,1e-08]
[1766599025278,8.86862108,122.27,122.26,1e-08]
[1766599026403,0.69,122.26,122.22,2.51847883]
[1766599026618,0.69,122.26,122.22,0.7]
[1766599027286,0.69,122.24,122.18,0.1]
[1766599027594,0.69,122.24,122.19,1.81847883]
[1766599027973,0.69,122.24,122.19,0.31847883]
[1766599028172,14.94,122.23,122.18,0.1]
[1766599028372,0.69,122.24,122.19,1.81847883]
[1766599028684,0.69,122.22,122.19,1.81847883]
[1766599028998,0.69,122.22,122.2,1.81847883]
[1766599029198,8.87213659,122.22,122.18,0.66000001]
[1766599029386,0.69,122.22,122.2,1.81847883]
[1766599029695,0.69,122.26,122.22,0.66]
[1766599030100,0.69,122.26,122.23,1.81847883]
[1766599030701,0.69,122.25,122.21,0.66]
[1766599031099,0.69,122.25,122.22,1.81847883]
[1766599031296,8.8704485,122.25,122.22,1.81847883]
[1766599031814,8.1804485,122.25,122.21,2.47847883]
[1766599032102,0.69,122.24,122.21,2.47847883]
[1766599032297,0.69,122.24,122.2,1.81847883]
[1766599032896,0.69,122.24,122.19,0.66]
[1766599032897,0.69,122.22,122.19,1.81847883]
[1766599033301,0.69,122.2,122.18,1e-08]
[1766599035518,8.8737584,122.2,122.18,1e-08]
[1766599036505,23.81288982,122.21,122.18,1.81847884]
[1766599037505,8.18220005,122.22,122.19,1.81847883]
[1766599037726,8.18220005,122.22,122.19,2.47847883]
[1766599038014,8.87220005,122.22,122.19,2.47847883]
[1766599038187,8.87220005,122.22,122.2,1.81847883]
[1766599038911,8.87220005,122.22,122.19,2.47847883]
[1766599039412,8.87220005,122.22,122.2,1.81847883]
[1766599041011,8.87220005,122.22,122.19,0.66]
[1766599041219,8.87220005,122.22,122.2,1.81847883]
[1766599042302,8.87220005,122.22,122.19,2.47847883]
[1766599042916,8.87220005,122.22,122.2,1.81847883]
[1766599043105,0.69,122.22,122.2,1.81847883]
[1766599043309,23.12161427,122.23,122.21,1.81847883]
[1766599043615,23.81161427,122.23,122.2,2.47847883]
[1766599044417,0.69,122.22,122.2,1.81847883]
[1766599045024,8.87210872,122.22,122.18,0.66000001]
[1766599045312,8.87210872,122.22,122.2,1.81847883]
[1766599045917,0.69,122.22,122.2,1.81847883]
[1766599046217,0.69,122.22,122.19,2.47847883]
[1766599046513,8.87216744,122.22,122.19,2.47847883]
[1766599047020,0.69,122.22,122.19,2.47847883]
[1766599049005,8.87197253,122.22,122.19,2.47847883]
[1766599049318,14.94,122.23,122.21,2.47847883]
[1766599049512,0.69,122.25,122.22,2.47847883]
[1766599050199,8.87016664,122.25,122.22,1.81847883]
[1766599051417,8.18016664,122.25,122.22,2.47847883]
[1766599051602,21.13605034,122.28,122.24,2.47847883]
[1766599051804,15.63,122.27,122.24,2.47847883]
[1766599052006,0.69,122.27,122.25,1.81847883]
[1766599052420,28.62400258,122.28,122.25,1.81847883]
[1766599052724,8.86795224,122.28,122.26,1.81847883]
[1766599052905,8.86795224,122.28,122.25,2.47847883]
[1766599053323,8.86795224,122.28,122.25,0.66]
[1766599053524,8.86795224,122.28,122.25,2.47847883]
[1766599054524,8.17795224,122.28,122.26,2.47847883]
[1766599054911,8.86795224,122.28,122.24,0.66]
[1766599055109,8.86795224,122.28,122.26,1.81847883]
[1766599056022,8.86795224,122.28,122.24,0.66]
[1766599056023,8.86795224,122.28,122.25,1.81847883]
[1766599057603,0.69,122.28,122.26,1.81847883]
[1766599062529,0.69,122.28,122.25,2.47847883]
[1766599063230,23.11741094,122.29,122.25,1.81847883]
[1766599063419,23.11741094,122.29,122.27,0.66]
[1766599063617,23.11741094,122.29,122.26,1.81847883]
[1766599063936,8.85741094,122.29,122.26,2.47847883]
[1766599064510,8.85741094,122.29,122.26,0.66]
[1766599064731,8.85741094,122.29,122.26,2.47847883]
[1766599065236,8.85741094,122.29,122.25,1.81847883]
[1766599065416,8.85741094,122.29,122.26,1.81847883]
[1766599067439,8.85741094,122.29,122.25,2.47847883]
[1766599068317,8.85741094,122.29,122.25,1.81847883]
[1766599068525,8.85741094,122.29,122.24,8.18032986]
[1766599068526,8.85741094,122.29,122.26,2.47847883]
[1766599071343,0.68,122.28,122.26,2.47847883]
[1766599071528,0.68,122.28,122.26,1.81847883]
[1766599071727,0.68,122.28,122.25,2.47847883]
[1766599074542,0.68,122.28,122.25,1.81847883]
[1766599074843,0.68,122.27,122.24,0.66]
[1766599076119,0.68,122.27,122.22,14.94]
[1766599076325,0.68,122.27,122.23,1.81847883]
[1766599076837,8.85929003,122.26,122.23,1.81847883]
[1766599077355,8.85896787,122.27,122.24,0.66]
[1766599077922,0.68,122.27,122.24,2.47847883]
[1766599078342,0.68,122.27,122.25,1.81847883]
[1766599078853,0.68,122.27,122.24,2.47847883]
[1766599079362,8.85864609,122.27,122.24,2.47847883]
[1766599080153,0.68,122.27,122.24,2.47847883]
[1766599080844,0.68,122.26,122.23,2.47847883]
[1766599081957,8.85940148,122.26,122.23,3.50402653]
[1766599082439,8.85883246,122.27,122.24,3.50402653]
[1766599082631,0.68,122.27,122.25,2.84402653]
[1766599083650,0.68,122.27,122.24,3.50402653]
[1766599083951,8.85862316,122.27,122.24,3.50402653]
[1766599084450,0.68,122.27,122.24,3.50402653]
[1766599085349,8.85882365,122.27,122.24,3.50402653]
[1766599086165,0.68,122.27,122.24,11.68429793]
[1766599086343,0.58,122.26,122.23,0.66]
[1766599086662,8.7599591,122.25,122.22,0.66]
[1766599086836,8.7599591,122.25,122.19,25.37767296]
[1766599086837,0.58,122.24,122.2,0.66]
[1766599087671,0.58,122.24,122.2,3.50402653]
[1766599087873,0.58,122.24,122.2,0.66]
[1766599088174,0.58,122.23,122.2,0.66]
[1766599088552,8.18136461,122.23,122.2,0.66]
[1766599088755,8.7609631,122.24,122.21,0.67]
[1766599096859,29.21253378,122.24,122.21,0.67]
[1766599097378,0.65,122.23,122.19,2.84402653]
[1766599098052,8.18196694,122.22,122.19,2.84402653]
[1766599099274,8.18196694,122.22,122.2,0.67]
[1766599099897,0.65,122.23,122.21,3.51402653]
[1766599100687,0.65,122.23,122.21,0.67]
[1766599101294,8.83133465,122.23,122.21,0.67]
[1766599104162,8.83098921,122.24,122.21,3.51402653]
[1766599104352,8.18098921,122.24,122.22,2.84402653]
[1766599104558,112.73354297,122.26,122.23,3.51402653]
[1766599104878,8.17795224,122.28,122.26,0.67]
[1766599105377,8.82795224,122.28,122.25,3.51402653]
[1766599105753,8.82795224,122.28,122.25,0.67]
[1766599105957,8.82795224,122.28,122.25,3.51402653]
[1766599106154,8.82795224,122.28,122.25,0.67]
[1766599106385,0.65,122.27,122.25,0.67]
[1766599106882,8.82795224,122.28,122.25,3.51402653]
[1766599109459,8.82795224,122.28,122.25,0.67]
[1766599110460,0.65,122.27,122.25,0.67]
[1766599111294,0.65,122.27,122.25,3.51402653]
[1766599112588,0.65,122.27,122.25,0.67]
[1766599113276,0.65,122.27,122.25,3.51402653]
[1766599114485,8.82795224,122.28,122.25,3.51402653]
[1766599114672,23.11755627,122.29,122.27,0.67]
[1766599114987,6.52755627,122.29,122.26,2.84402653]
[1766599115167,20.45659111,122.31,122.28,2.84402653]
[1766599115361,0.65,122.31,122.3,2.84402653]
[1766599115685,0.65,122.31,122.29,2.84402653]
[1766599119589,8.83562349,122.32,122.29,2.84402653]
[1766599119787,0.66,122.32,122.3,2.84402653]
[1766599120085,19.27250473,122.33,122.31,2.84402653]
[1766599120392,19.27250473,122.33,122.3,2.84402653]
[1766599120973,0.66,122.32,122.27,8.17833019]
[1766599121277,0.66,122.32,122.29,2.84402653]
[1766599122387,0.66,122.31,122.29,2.84402653]
[1766599122688,0.66,122.31,122.28,11.02187558]
[1766599122888,8.83544062,122.32,122.28,11.02187558]
[1766599123276,0.66,122.31,122.28,11.02187558]
[1766599123597,8.83598764,122.31,122.26,28.62696033]
[1766599123782,8.83598764,122.31,122.28,2.84402653]
[1766599125999,8.17553322,122.32,122.28,2.84402653]
[1766599126191,8.83553322,122.32,122.28,2.84402653]
[1766599126900,8.83553322,122.32,122.27,8.17850146]
[1766599127070,8.83553322,122.32,122.28,2.84402653]
[1766599127971,8.83605511,122.31,122.28,2.84402653]
[1766599130618,8.83527795,122.32,122.28,2.84402653]
[1766599131394,0.66,122.31,122.28,2.84402653]
[1766599133476,0.66,122.31,122.28,11.02197478]
[1766599133692,0.66,122.31,122.28,2.84402653]
[1766599133896,8.8359501,122.31,122.28,2.84402653]
[1766599136907,0.66,122.32,122.29,2.84402653]
[1766599137292,8.83528095,122.32,122.28,8.17769937]
[1766599137489,8.83528095,122.32,122.29,2.84402653]
[1766599140524,8.83528095,122.32,122.26,20.44786541]
[1766599140821,8.83528095,122.32,122.29,2.84402653]
[1766599142016,8.83528095,122.32,122.29,1.81845553]
[1766599143827,8.83528095,122.32,122.3,1.81845553]
[1766599144118,8.83528095,122.32,122.29,1.81845553]
[1766599144298,0.66,122.32,122.3,1.81845553]
[1766599144492,8.83529406,122.32,122.3,1.81845553]
[1766599144693,8.83529406,122.32,122.29,1.81845553]
[1766599145221,0.66,122.31,122.29,1.81845553]
[1766599148799,8.83631444,122.31,122.27,9.99700839]
[1766599148994,8.83631444,122.31,122.28,1.81845553]
[1766599149501,0.66,122.31,122.29,1.81845553]
[1766599149717,8.83595592,122.31,122.29,1.81845553]
[1766599149921,8.83595592,122.31,122.28,1.81845553]
[1766599150101,8.83561527,122.32,122.28,8.17772241]
[1766599150308,8.83561527,122.32,122.29,1.81845553]
[1766599150727,0.66,122.32,122.3,1.81845553]
[1766599150927,8.83533388,122.32,122.3,1.81845553]
[1766599151098,0.66,122.31,122.27,1.81845553]
[1766599151303,0.66,122.29,122.27,1.81845553]
[1766599151526,0.66,122.29,122.26,16.73845553]
[1766599151998,0.66,122.29,122.27,1.81845553]
[1766599152201,0.66,122.29,122.26,14.92]
[1766599152513,0.66,122.29,122.25,1.81845553]
[1766599153432,0.66,122.27,122.24,1.81845553]
[1766599154309,0.66,122.28,122.26,1.81845553]
[1766599154629,0.66,122.28,122.25,1.81845553]
[1766599154932,0.66,122.28,122.23,14.92]
[1766599155099,1.81845553,122.27,122.22,48.51361734]
[1766599155306,4.251,122.21,122.15,0.1]
[1766599155501,4.251,122.21,122.15,1.91845553]
[1766599155502,0.66,122.19,122.15,1.91845553]
[1766599156106,0.66,122.19,122.16,1.81845553]
[1766599156828,4.251,122.21,122.16,10.43767296]
[1766599157038,4.251,122.21,122.19,1.81845553]
[1766599157537,12.43370715,122.21,122.19,1.81845553]
[1766599158114,13.09370715,122.21,122.18,1.81845553]
[1766599158623,13.09370715,122.21,122.17,1.81845553]
[1766599158624,0.66,122.2,122.17,1.81845553]
[1766599159425,0.66,122.19,122.15,1.91845553]
[1766599159727,0.66,122.19,122.16,1.81845553]
[1766599159927,0.66,122.19,122.15,0.1]
[1766599159928,0.66,122.19,122.15,1.91845553]
[1766599160117,0.66,122.19,122.15,12.35612849]
[1766599160435,0.66,122.18,122.15,10.53767296]
[1766599161105,0.66,122.18,122.15,12.35612849]
[1766599162033,0.66,122.18,122.15,10.53767296]
[1766599162414,8.84483627,122.18,122.15,10.53767296]
[1766599163021,0.66,122.18,122.15,10.53767296]
[1766599163217,0.66,122.18,122.15,12.35612849]
[1766599163512,8.84473762,122.18,122.15,10.53767296]
[1766599163838,0.66,122.17,122.15,10.53767296]
[1766599164416,0.66,122.17,122.15,0.1]
[1766599164819,0.66,122.17,122.15,1e-08]
[1766599165114,0.66,122.16,122.15,1e-08]
[1766599165311,28.64635163,122.18,122.15,1e-08]
[1766599165636,0.66,122.16,122.15,1e-08]
[1766599166520,0.66,122.15,122.11,1.81845553]
[1766599167310,0.66,122.15,122.11,12.25612849]
[1766599168139,8.18705232,122.15,122.11,10.43767296]
[1766599168332,0.66,122.14,122.11,10.43767296]
[1766599168534,0.66,122.14,122.11,9.43767296]
[1766599168735,1.81845553,122.13,122.08,4.88316658]
[1766599168934,0.66,122.12,122.08,7.41162211]
[1766599169124,0.66,122.12,122.08,5.59316658]
[1766599170341,0.66,122.1,122.08,4.88316658]
[1766599171521,0.66,122.09,122.08,4.88316658]
[1766599171942,0.66,122.09,122.08,4.50486658]
[1766599172720,0.66,122.1,122.08,4.50486658]
[1766599173653,0.66,122.09,122.08,4.50486658]
[1766599174327,10.66913453,122.09,122.08,1e-08]
[1766599174529,8.850679,122.09,122.08,1e-08]
[1766599175047,30.48583204,122.09,122.05,0.71]
[1766599175247,30.48583204,122.09,121.97,68.45223827]
[1766599175248,0.66,122.05,121.97,4.26531487]
[1766599175547,4.26536086,122.0,121.98,0.71]
[1766599176050,0.66,122.03,121.99,1.81845553]
[1766599176230,0.66,122.03,122.0,1.81845553]
[1766599176748,8.85158273,122.08,122.02,1.81845553]
[1766599177036,0.66,122.09,122.05,1.81845553]
[1766599177229,0.72,122.08,122.02,10.43767296]
[1766599177430,0.72,122.07,122.04,10.43767296]
[1766599177631,0.72,122.07,122.04,12.25612849]
[1766599178040,0.72,122.07,122.04,10.43767296]
[1766599178235,0.72,122.07,122.04,12.25612849]
[1766599180741,0.72,122.07,122.05,1.81845553]
[1766599181356,37.25421234,122.1,122.04,18.63156826]
[1766599181357,0.72,122.1,122.04,18.63156826]
[1766599181551,0.72,122.1,122.07,1.81845553]
[1766599181852,4.25461209,122.15,122.1,0.72]
[1766599182051,14.96,122.17,122.12,1.81845553]
[1766599182052,16.77845553,122.17,122.12,1.81845553]
[1766599182256,23.14539067,122.17,122.13,1.81845553]
[1766599182429,1.81845553,122.15,122.1,12.25612849]
[1766599182630,43.60867952,122.17,122.1,12.25612849]
[1766599182832,1.81845553,122.16,122.11,1.81845553]
[1766599183352,8.18539067,122.17,122.13,1.81845553]
[1766599183858,8.18539067,122.17,122.12,0.67]
[1766599183859,0.71,122.16,122.12,2.48845553]
[1766599184059,0.71,122.16,122.12,0.67]
[1766599184229,0.71,122.16,122.1,10.43767296]
[1766599184435,1.81845553,122.13,122.08,2.48845553]
[1766599184635,0.71,122.12,122.08,10.67976704]
[1766599185255,0.71,122.12,122.09,1.81845553]
[1766599185673,0.71,122.12,122.08,8.86131151]
[1766599185972,0.71,122.12,122.08,1.81845553]
[1766599186132,0.71,122.12,122.08,8.19120349]
[1766599186467,0.71,122.12,122.08,10.67965902]
[1766599187958,0.71,122.12,122.09,1.81845553]
[1766599188855,0.71,122.12,122.09,10.00906348]
[1766599189161,0.71,122.12,122.09,1.81845553]
[1766599189458,8.89758076,122.14,122.1,2.48845553]
[1766599189657,8.18758076,122.14,122.1,2.48845553]
[1766599189961,0.71,122.13,122.1,1.81845553]
[1766599190261,0.71,122.15,122.11,0.67]
[1766599190453,0.71,122.16,122.13,1.81845553]
[1766599190660,0.71,122.16,122.11,2.48845553]
[1766599190860,0.71,122.15,122.11,2.48845553]
[1766599191234,2.52845553,122.14,122.09,10.43767296]
[1766599191440,0.71,122.13,122.09,12.25612849]
[1766599191739,0.71,122.12,122.07,10.68029877]
[1766599192360,0.71,122.1,122.06,21.11842334]
[1766599192660,0.71,122.1,122.05,10.68141154]
[1766599193366,0.71,122.1,122.06,10.43767296]
[1766599193367,0.71,122.08,122.06,10.43767296]
[1766599193859,0.71,122.08,122.04,0.67]
[1766599194860,0.71,122.08,122.04,8.8638357]
[1766599195067,0.71,122.08,122.04,0.67]
[1766599195360,0.71,122.07,122.04,12.8514659]
[1766599195569,0.71,122.08,122.03,19.30227171]
[1766599195750,0.71,122.08,122.03,23.96027153]
[1766599196335,0.71,122.07,122.03,19.30227171]
[1766599196561,0.71,122.07,122.03,10.43767296]
[1766599196959,0.71,122.06,122.03,10.43767296]
[1766599197853,0.71,122.03,121.99,0.77]
[1766599198036,0.71,122.05,122.01,0.67]
[1766599198239,0.71,122.04,121.99,5.42799982]
[1766599198859,0.71,122.07,122.03,0.67]
[1766599199071,0.71,122.07,122.03,5.32799982]
[1766599199649,8.19207719,122.07,122.02,8.19519762]
[1766599199838,0.71,122.06,122.02,5.32799982]
[1766599200038,8.9015846,122.08,122.04,5.32799982]
[1766599200245,0.71,122.08,122.05,5.32799982]
[1766599200448,0.71,122.08,122.01,39.9431783]
[1766599200652,0.71,122.08,122.04,5.32799982]
[1766599200965,0.71,122.08,122.03,4.65799982]
[1766599201369,0.71,122.08,122.03,5.32799982]
[1766599201669,0.71,122.07,122.02,5.32799982]
[1766599201968,8.90085155,122.09,122.05,8.2368886]
[1766599202155,0.71,122.09,122.05,8.2368886]
[1766599202350,0.71,122.09,122.05,0.67]
[1766599202668,8.18954767,122.11,122.07,8.2368886]
[1766599203045,8.89954767,122.11,122.07,8.2368886]
[1766599203765,8.89954767,122.11,122.07,0.67]
[1766599204173,8.89954767,122.11,122.05,23.15288448]
[1766599204174,15.75643627,122.11,122.05,23.15288448]
[1766599204349,15.75643627,122.11,122.05,23.1968886]
[1766599204350,0.71,122.09,122.05,23.1968886]
[1766599204669,0.71,122.08,122.04,10.43767296]
[1766599204856,0.71,122.08,122.01,28.68457139]
[1766599204857,7.5668886,122.07,122.01,7.5668886]
[1766599205064,0.71,122.06,122.01,23.1968886]
[1766599205264,0.71,122.05,122.01,15.63]
[1766599205773,8.90403474,122.04,122.01,0.67]
[1766599205971,8.90403474,122.04,122.0,0.67]
[1766599206978,0.71,122.06,122.02,0.67]
[1766599207265,8.2568886,122.07,122.03,0.67]
[1766599207654,0.69,122.06,122.03,0.67]
[1766599207860,10.43767296,122.1,122.04,7.5668886]
[1766599208067,0.69,122.11,122.07,8.2668886]
[1766599208252,8.87891655,122.12,122.08,0.7]
[1766599208648,0.69,122.12,122.09,7.5668886]
[1766599208857,0.69,122.14,122.1,0.7]
[1766599209379,0.69,122.15,122.1,8.2668886]
[1766599209679,0.69,122.15,122.11,7.5668886]
[1766599209849,0.69,122.15,122.11,8.2668886]
[1766599210049,0.69,122.15,122.11,0.7]
[1766599210262,8.87679851,122.15,122.11,0.7]
[1766599210658,0.69,122.13,122.08,0.7]
[1766599210879,0.69,122.12,122.08,8.2668886]
[1766599211270,0.69,122.1,122.06,8.2668886]
[1766599211456,0.69,122.12,122.07,8.2668886]
[1766599211656,8.87969274,122.11,122.07,8.2668886]
[1766599212977,20.46766866,122.15,122.1,7.5668886]
[1766599213160,0.69,122.14,122.1,8.2668886]
[1766599213875,8.87768046,122.14,122.1,0.7]
[1766599215280,16.44456906,122.14,122.1,0.7]
[1766599217263,8.87768046,122.14,122.1,0.7]
[1766599217762,8.87768046,122.14,122.1,8.2668886]
[1766599218382,8.87768046,122.14,122.1,0.7]
[1766599219672,8.87768046,122.14,122.1,8.2668886]
[1766599220291,8.87768046,122.14,122.1,0.7]
[1766599220494,0.69,122.13,122.09,7.5668886]
[1766599221065,0.69,122.13,122.09,8.2668886]
[1766599221906,8.87849387,122.13,122.09,0.7]
[1766599223472,0.69,122.1,122.06,18.70456156]
[1766599223792,0.69,122.1,122.05,8.2668886]
[1766599224169,15.65,122.12,122.07,8.2668886]
[1766599224490,0.69,122.11,122.07,8.2668886]
[1766599225364,8.87934233,122.11,122.07,8.2668886]
[1766599226603,0.69,122.1,122.07,0.7]
[1766599226809,0.69,122.1,122.07,7.5668886]
[1766599227473,0.69,122.1,122.06,8.2668886]
[1766599228324,0.69,122.1,122.07,7.5668886]
[1766599228619,8.18934233,122.11,122.07,8.2668886]
[1766599228620,8.87934233,122.11,122.07,8.2668886]
[1766599228826,8.18877279,122.12,122.08,8.2668886]
[1766599229688,8.87877279,122.12,122.08,8.2668886]
[1766599229892,0.69,122.12,122.08,16.45819255]
[1766599230094,0.69,122.12,122.09,7.5668886]
[1766599230293,0.69,122.12,122.08,16.45816948]
[1766599230510,0.69,122.12,122.08,8.2668886]
[1766599230713,0.69,122.12,122.06,0.7]
[1766599231016,0.69,122.09,122.05,81.20456156]
[1766599231189,0.69,122.09,122.05,18.70456156]
[1766599231393,0.69,122.09,122.05,11.13767296]
[1766599232121,8.88134993,122.08,122.04,14.96]
[1766599232300,16.44823853,122.08,122.04,14.96]
[1766599233032,16.44823853,122.08,122.03,26.19926334]
[1766599233209,8.88134993,122.08,122.04,0.7]
[1766599233595,0.69,122.07,122.03,0.7]
[1766599234104,0.69,122.07,122.03,16.46140369]
[1766599234418,8.88134993,122.08,122.04,8.2668886]
[1766599234612,16.44823853,122.08,122.04,0.7]
[1766599235313,8.88134993,122.08,122.04,0.7]
[1766599235495,16.44823853,122.08,122.04,0.7]
[1766599236219,8.88134993,122.08,122.04,0.7]
[1766599236430,16.44823853,122.08,122.04,0.7]
[1766599237110,8.88134993,122.08,122.04,0.7]
[1766599237315,8.88134993,122.08,122.04,8.2668886]
[1766599237512,8.19134993,122.08,122.04,7.5668886]
[1766599237716,8.19134993,122.08,122.05,0.68]
[1766599238301,0.67,122.07,122.03,8.2468886]
[1766599238804,0.67,122.07,122.03,0.68]
[1766599239004,8.2368886,122.07,122.03,0.68]
[1766599239198,0.67,122.06,122.03,0.68]
[1766599240422,16.42961456,122.06,122.03,0.68]
[1766599240619,8.2368886,122.05,122.0,7.5668886]
[1766599240825,0.67,122.04,122.0,15.64]
[1766599241534,0.67,122.04,122.0,31.40349973]
[1766599241716,0.67,122.04,122.01,8.2468886]
[1766599242435,8.86269211,122.06,122.02,8.2468886]
[1766599242621,0.68,122.05,122.02,0.68]
[1766599242927,0.68,122.05,122.01,0.7]
[1766599243104,0.68,122.05,122.01,8.2668886]
[1766599243304,0.68,122.05,122.01,16.46279286]
[1766599245429,8.87339718,122.05,122.01,8.2668886]
[1766599246025,0.68,122.05,122.01,16.46292695]
[1766599246627,0.68,122.05,122.02,7.5668886]
[1766599248512,0.68,122.05,122.01,8.89603835]
[1766599248513,8.87340159,122.05,122.01,8.2668886]
[1766599249729,0.68,122.05,122.01,16.46286231]
[1766599250445,0.68,122.07,122.03,8.2668886]
[1766599250734,0.68,122.07,122.04,7.5668886]
[1766599250906,0.68,122.07,122.03,8.2668886]
[1766599251106,8.87225667,122.07,122.03,8.2668886]
[1766599252331,0.68,122.06,121.99,0.91973932]
[1766599252533,0.68,122.03,121.99,8.99739322]
[1766599252741,0.68,122.03,122.0,0.7]
[1766599253828,0.68,122.03,122.0,8.2668886]
[1766599254326,8.19383091,122.05,122.0,8.2668886]
[1766599254530,0.68,122.04,122.0,8.2668886]
[1766599256435,8.87412886,122.04,122.0,8.2668886]
[1766599256843,0.68,122.04,122.0,8.2668886]
[1766599257231,8.19367512,122.05,122.02,0.7]
[1766599257426,8.87367512,122.05,122.01,0.7]
[1766599258240,0.68,122.04,122.01,0.7]
[1766599258630,0.68,122.04,122.01,8.2668886]
[1766599260346,8.87429013,122.04,122.0,8.2668886]
[1766599260530,8.87429013,122.04,122.0,0.7]
[1766599260731,0.68,122.03,121.99,0.1]
[1766599261249,0.68,122.03,122.0,0.7]
[1766599261862,8.19429013,122.04,122.01,0.7]
[1766599262045,8.87429013,122.04,122.01,0.7]
[1766599262344,8.87429013,122.04,122.0,8.2668886]
[1766599263049,8.87429013,122.04,122.0,0.7]
[1766599263348,8.87429013,122.04,122.0,8.2668886]
[1766599263924,8.87429013,122.04,122.0,0.7]
[1766599265548,8.87368806,122.05,122.01,0.7]
[1766599265756,8.19368806,122.05,122.0,13.55757019]
[1766599265954,0.68,122.04,122.0,13.55757019]